bitfinex/quotes_ETHUSD_20220101
["timestamp","ask_amount","ask_price","bid_price","bid_amount"]
[1641058144596,5.56694105,3735.4,3735.3,9.73532026]
[1641058144797,5.56694105,3735.4,3735.3,10.73532026]
[1641058145195,5.56694105,3735.4,3735.3,11.59312026]
[1641058145398,4.11644105,3735.4,3735.3,11.59312026]
[1641058145598,2.7,3735.4,3735.3,11.59312026]
[1641058145799,1.0111,3735.4,3735.3,16.42912026]
[1641058146000,0.054584,3736.3,3735.4,6.95168446]
[1641058146202,8.4e-05,3736.3,3736.0,0.669]
[1641058146397,0.00454739,3736.2,3736.1,2.65337618]
[1641058146597,0.00454739,3736.2,3736.1,0.687]
[1641058147450,0.00454739,3736.2,3736.1,2.95337618]
[1641058147653,0.00454739,3736.2,3736.1,3.55546268]
[1641058148051,0.00454739,3736.2,3736.1,7.10546268]
[1641058148450,0.00454739,3736.2,3736.1,8.10546268]
[1641058149851,0.00454739,3736.2,3736.1,4.55546268]
[1641058150051,0.00454739,3736.2,3736.1,7.80546268]
[1641058150752,0.00454739,3736.2,3736.1,6.80546268]
[1641058151092,0.00454739,3736.2,3736.1,7.80546268]
[1641058153100,0.00454739,3736.2,3736.1,0.9890865]
[1641058153301,0.00454739,3736.2,3736.0,7.01909704]
[1641058153302,0.00454739,3736.2,3736.0,10.34248564]
[1641058153498,0.00454739,3736.2,3736.0,8.46931264]
[1641058153697,0.00397897,3736.1,3736.0,8.46931264]
[1641058154104,0.00397897,3736.1,3736.0,4.66938]
[1641058154703,0.00397897,3736.1,3736.0,5.33852]
[1641058154956,0.00397897,3736.1,3736.0,4.00054]
[1641058155358,0.00397897,3736.1,3736.0,6.02968392]
[1641058155556,0.00397897,3736.1,3736.0,6.41668392]
[1641058156959,2.70397897,3736.1,3736.0,6.41668392]
[1641058157258,2.70397897,3736.1,3736.0,3.08528392]
[1641058157462,2.70397897,3736.1,3735.9,0.061]
[1641058157662,2.70397897,3736.1,3735.7,3.85408314]
[1641058157863,0.00341055,3736.0,3735.7,3.85408314]
[1641058158264,0.04647405,3737.0,3735.7,3.85408314]
[1641058158265,0.00284212,3735.9,3735.7,0.0541505]
[1641058158699,0.0022737,3735.8,3735.7,0.0541505]
[1641058159302,0.0022737,3735.8,3735.5,8.75706114]
[1641058159701,0.00170527,3735.7,3735.5,8.75706114]
[1641058159902,0.00170527,3735.7,3735.6,1.84623451]
[1641058160105,1.36224474,3736.2,3735.6,1.84623451]
[1641058160506,0.00397897,3736.1,3735.6,0.01058799]
[1641058160903,0.00341055,3736.0,3735.6,0.01058799]
[1641058161307,0.00284212,3735.9,3735.6,0.01058799]
[1641058161704,0.0022737,3735.8,3735.6,0.01058799]
[1641058162107,0.00170527,3735.7,3735.6,0.01058799]
[1641058171756,0.00170527,3735.7,3735.6,3.01058799]
[1641058171957,0.00170527,3735.7,3735.6,5.26287685]
[1641058172958,0.00170527,3735.7,3735.6,5.94987685]
[1641058173159,0.00170527,3735.7,3735.6,6.24987685]
[1641058173610,0.00170527,3735.7,3735.6,7.24987685]
[1641058174013,0.00170527,3735.7,3735.6,8.58810685]
[1641058174615,0.00170527,3735.7,3735.6,11.63810685]
[1641058174817,0.00170527,3735.7,3735.6,11.94290685]
[1641058175915,0.00090527,3735.7,3735.6,8.89290685]
[1641058176918,0.00090527,3735.7,3735.6,10.3594592]
[1641058178364,0.00090527,3735.7,3735.6,8.58810685]
[1641058178765,0.00090527,3735.7,3735.6,10.3594592]
[1641058179664,0.00090527,3735.7,3735.6,8.58810685]
[1641058179868,0.00090527,3735.7,3735.6,6.33581799]
[1641058180068,0.00090527,3735.7,3735.6,3.33581799]
[1641058180269,0.00090527,3735.7,3735.6,3.98810685]
[1641058180466,0.00090527,3735.7,3735.6,5.58810685]
[1641058180867,0.00090527,3735.7,3735.6,9.15036863]
[1641058181307,0.00090527,3735.7,3735.6,6.89807977]
[1641058181904,0.00090527,3735.7,3735.6,9.15036863]
[1641058182514,0.00090527,3735.7,3735.6,6.89807977]
[1641058185253,0.00090527,3735.7,3735.6,3.33581799]
[1641058191411,0.00010527,3735.7,3735.6,3.33581799]
[1641058194254,0.00010527,3735.7,3735.6,1.73581799]
[1641058194454,0.00010527,3735.7,3735.6,0.01058799]
[1641058195458,1.29759237,3735.7,3735.6,0.01058799]
[1641058195859,1.29759237,3735.7,3735.6,1.79437199]
[1641058199620,1.29759237,3735.7,3735.6,0.01058799]
[1641058200474,0.00010527,3735.7,3735.6,0.01058799]
[1641058203475,0.00010527,3735.7,3735.6,0.00558799]
[1641058204513,0.00010527,3735.7,3735.6,1.80221785]
[1641058206617,1.38847136,3735.8,3735.6,1.80221785]
[1641058207464,1.38847136,3735.8,3735.6,0.00558799]
[1641058208866,2.05784136,3735.8,3735.6,0.00558799]
[1641058209566,2.05784136,3735.8,3735.7,1.2390382]
[1641058211211,1.38847136,3735.8,3735.7,1.2390382]
[1641058211615,1.33859,3736.4,3735.7,1.2390382]
[1641058211808,0.66927,3736.1,3735.7,1.2390382]
[1641058212011,0.00124212,3735.9,3735.7,1.2390382]
[1641058214413,0.00124212,3735.9,3735.7,0.6195191]
[1641058214714,0.00124212,3735.9,3735.8,1.2390382]
[1641058217671,0.39661398,3735.9,3735.8,1.2390382]
[1641058221615,0.00124212,3735.9,3735.8,1.8390382]
[1641058221811,0.00124212,3735.9,3735.8,2.5081882]
[1641058222210,0.00124212,3735.9,3735.8,3.5081882]
[1641058225968,0.69881745,3736.3,3736.0,0.66912]
[1641058225969,0.69825557,3736.3,3736.0,0.66912]
[1641058226207,0.69825557,3736.3,3736.0,1.33824]
[1641058226407,0.00170527,3736.2,3736.0,1.63824]
[1641058226609,0.00170527,3736.2,3736.0,1.93824]
[1641058226808,0.00113685,3736.1,3736.0,1.93824]
[1641058227011,0.00113685,3736.1,3736.0,2.93824]
[1641058227308,0.00113685,3736.1,3736.0,2.97412514]
[1641058228715,0.00113685,3736.1,3736.0,3.36112514]
[1641058228915,0.05453275,3737.2,3736.0,3.36112514]
[1641058228916,0.05453275,3737.2,3736.5,0.66891]
[1641058229216,0.00454739,3736.9,3736.7,1.33778]
[1641058229414,0.00454739,3736.9,3736.8,0.387]
[1641058229621,0.05453275,3737.2,3736.8,0.387]
[1641058229878,0.05453275,3737.2,3736.8,0.687]
[1641058230080,0.05453275,3737.2,3736.8,1.7247522]
[1641058230880,0.05453275,3737.2,3736.8,0.387]
[1641058231082,0.05453275,3737.2,3736.4,4.23135178]
[1641058231282,1.28361273,3737.3,3736.4,4.53135178]
[1641058231580,1.28361273,3737.3,3736.7,0.6195191]
[1641058231781,1.28361273,3737.3,3736.8,1.79986824]
[1641058232382,1.28361273,3737.3,3736.9,0.01058441]
[1641058232582,2.64486056,3737.3,3736.9,0.01058441]
[1641058232884,0.05158986,3737.0,3736.9,0.01058441]
[1641058233084,2.80158986,3737.0,3736.9,0.01058441]
[1641058236923,2.80158986,3737.0,3736.9,0.63010351]
[1641058237125,2.80158986,3737.0,3736.9,1.24962261]
[1641058238984,6.10158986,3737.0,3736.9,1.24962261]
[1641058239789,6.77074986,3737.0,3736.9,1.24962261]
[1641058241649,3.47074986,3737.0,3736.9,1.24962261]
[1641058248176,6.51246931,3737.0,3736.9,1.24962261]
[1641058248622,9.21246931,3737.0,3736.9,1.24962261]
[1641058249232,8.54330931,3737.0,3736.9,1.24962261]
[1641058252034,9.24200825,3737.0,3736.9,1.24962261]
[1641058255378,6.49200825,3737.0,3736.9,1.24962261]
[1641058257036,6.44200825,3737.0,3736.9,1.24962261]
[1641058273234,6.44200825,3737.0,3736.9,1.54962261]
[1641058273642,3.4002888,3737.0,3736.9,1.54962261]
[1641058273840,2.70158986,3737.0,3736.9,2.88750261]
[1641058274041,2.70158986,3737.0,3736.9,3.88750261]
[1641058274440,2.70158986,3737.0,3736.9,5.68737085]
[1641058274888,2.70158986,3737.0,3736.9,3.88750261]
[1641058277200,2.70158986,3737.0,3736.9,4.58960261]
[1641058278406,2.70158986,3737.0,3736.9,4.59239481]
[1641058279648,2.70158986,3737.0,3736.9,6.39853876]
[1641058280052,2.70158986,3737.0,3736.9,8.30768414]
[1641058280252,2.70158986,3737.0,3736.9,6.39853876]
[1641058281655,2.70158986,3737.0,3736.9,4.59239481]
[1641058282689,2.70158986,3737.0,3736.9,3.89029481]
[1641058283088,2.70158986,3737.0,3736.9,2.89029481]
[1641058283291,2.70158986,3737.0,3736.9,3.89029481]
[1641058285190,2.70158986,3737.0,3736.9,4.27729481]
[1641058286436,2.70158986,3737.0,3736.9,6.52729481]
[1641058286835,0.6707269,3737.0,3736.9,8.44331211]
[1641058287038,0.6707269,3737.0,3736.9,8.59374741]
[1641058287235,0.66913704,3737.0,3736.9,8.59374741]
[1641058288741,0.53816967,3737.0,3736.9,8.59374741]
[1641058290090,0.53816967,3737.0,3736.9,7.55923011]
[1641058290491,0.05453104,3738.4,3737.6,0.6687781]
[1641058290692,0.05453104,3738.4,3738.0,2.74840674]
[1641058290894,0.00897936,3738.3,3738.0,2.07961674]
[1641058291095,0.00897936,3738.3,3738.2,0.6195191]
[1641058291393,6.4,3738.6,3738.2,1.2390382]
[1641058291594,6.4,3738.6,3738.2,1.9077817]
[1641058291797,0.01011621,3738.5,3738.3,0.66875]
[1641058292192,0.00954779,3738.4,3738.3,0.66875]
[1641058292393,0.00954779,3738.4,3738.3,2.54992]
[1641058292992,0.00954779,3738.4,3738.3,3.14992]
[1641058293646,0.00954779,3738.4,3738.3,4.53692]
[1641058294454,1.61848204,3738.6,3738.3,8.28692]
[1641058294655,0.68100827,3738.6,3738.5,6.71857]
[1641058294853,1.36124783,3739.3,3738.6,6.73100827]
[1641058295059,1.36124783,3739.3,3738.7,3.61679346]
[1641058295353,1.36124783,3739.3,3738.8,1.00287967]
[1641058295557,3.99610376,3739.5,3739.1,4.836]
[1641058295754,0.40035322,3740.8,3739.2,7.54831346]
[1641058295755,6.15,3739.3,3739.2,7.54831346]
[1641058295960,5.35660864,3739.7,3739.3,4.0]
[1641058295961,0.00568423,3739.4,3739.3,4.0]
[1641058296156,0.00568423,3739.4,3739.3,12.48431346]
[1641058296356,5.35660864,3739.7,3739.3,13.40383256]
[1641058296357,0.00682108,3739.6,3739.3,13.40383256]
[1641058296559,0.00682108,3739.6,3739.4,7.24367609]
[1641058296758,1.80893356,3740.0,3739.5,7.24831346]
[1641058296962,3.64668958,3740.5,3739.7,2.0049296]
[1641058297160,6.8,3741.0,3740.4,1.25044099]
[1641058297404,6.8,3741.1,3740.5,0.387]
[1641058297608,0.01421058,3740.9,3740.5,0.387]
[1641058297809,0.01477901,3741.0,3740.5,0.387]
[1641058298011,0.01364216,3740.8,3740.5,0.387]
[1641058298213,1.80893356,3741.3,3740.5,0.387]
[1641058298214,6.8,3740.9,3740.5,0.387]
[1641058298409,0.01307374,3740.7,3740.5,0.387]
[1641058298610,0.01364216,3740.8,3740.5,0.387]
[1641058298810,0.01250531,3740.6,3740.5,0.387]
[1641058299010,0.01307374,3740.7,3740.5,0.387]
[1641058299213,6.8,3740.9,3740.5,0.387]
[1641058299215,0.01250531,3740.6,3740.5,0.387]
[1641058299411,0.01250531,3740.6,3740.5,2.33996832]
[1641058299620,0.01250531,3740.6,3740.5,0.387]
[1641058300215,0.01250531,3740.6,3740.5,2.29453358]
[1641058301649,0.01250531,3740.6,3740.5,2.91485268]
[1641058301851,0.01250531,3740.6,3740.5,3.53517178]
[1641058303859,0.01250531,3740.6,3740.5,3.57049505]
[1641058306707,0.01250531,3740.6,3740.5,1.66296147]
[1641058307208,0.01250531,3740.6,3740.5,1.96296147]
[1641058307612,0.01250531,3740.6,3740.5,4.24626805]
[1641058307814,0.01250531,3740.6,3740.5,4.54626805]
[1641058308015,0.01250531,3740.6,3740.5,5.54626805]
[1641058308217,0.01250531,3740.6,3740.5,7.84626805]
[1641058308659,0.01250531,3740.6,3740.5,5.54626805]
[1641058310865,0.01250531,3740.6,3740.5,6.21451805]
[1641058311666,0.01250531,3740.6,3740.5,3.26296147]
[1641058312496,0.01250531,3740.6,3740.5,2.26296147]
[1641058312702,0.01250531,3740.6,3740.5,3.26296147]
[1641058312898,0.01250531,3740.6,3740.5,1.96296147]
[1641058313099,0.01250531,3740.6,3740.5,2.26296147]
[1641058313498,0.01250531,3740.6,3740.5,5.21455805]
[1641058313899,0.01250531,3740.6,3740.5,4.54626805]
[1641058314098,0.01250531,3740.6,3740.5,5.54626805]
[1641058314301,0.01250531,3740.6,3740.5,4.54626805]
[1641058314903,0.01250531,3740.6,3740.5,2.26296147]
[1641058315101,0.01250531,3740.6,3740.5,4.56296147]
[1641058315903,0.01250531,3740.6,3740.5,6.84626805]
[1641058316372,0.01250531,3740.6,3740.5,1.66296147]
[1641058316574,0.01250531,3740.6,3740.5,2.26296147]
[1641058316976,0.01250531,3740.6,3740.5,4.31004475]
[1641058317576,0.01250531,3740.6,3740.5,5.31004475]
[1641058317778,0.01250531,3740.6,3740.5,4.31004475]
[1641058317980,0.01250531,3740.6,3740.5,5.31004475]
[1641058319179,0.01250531,3740.6,3740.5,7.51004475]
[1641058320205,0.01250531,3740.6,3740.5,5.31004475]
[1641058321306,0.01250531,3740.6,3740.5,4.31004475]
[1641058321707,0.01250531,3740.6,3740.5,5.31004475]
[1641058323115,0.01250531,3740.6,3740.5,9.36004475]
[1641058323312,0.01339386,3740.6,3740.5,9.36004475]
[1641058323513,0.01339386,3740.6,3740.5,5.31004475]
[1641058323954,0.01339386,3740.6,3740.5,8.76004475]
[1641058324554,0.01339386,3740.6,3740.5,5.31004475]
[1641058327162,0.01339386,3740.6,3740.5,4.31004475]
[1641058327404,0.01339386,3740.6,3740.5,5.31004475]
[1641058327608,0.01339386,3740.6,3740.5,3.26296147]
[1641058328009,0.01339386,3740.6,3740.5,5.11134631]
[1641058328211,0.01339386,3740.6,3740.5,1.66296147]
[1641058328414,0.01339386,3740.6,3740.5,1.27596147]
[1641058329613,0.00088855,3740.6,3740.5,1.27596147]
[1641058334555,0.0017771,3740.6,3740.5,1.27596147]
[1641058335800,2.7517771,3740.6,3740.5,1.27596147]
[1641058336607,5.7905409,3740.6,3740.5,1.27596147]
[1641058337109,3.0405409,3740.6,3740.5,1.29424212]
[1641058340265,0.0017771,3740.6,3740.5,1.29424212]
[1641058346549,3.04063402,3740.6,3740.5,1.29424212]
[1641058346946,0.0017771,3740.6,3740.5,1.29424212]
[1641058347550,3.04063402,3740.6,3740.5,1.29424212]
[1641058348352,0.0017771,3740.6,3740.5,1.29424212]
[1641058349355,3.04061984,3740.6,3740.5,1.29424212]
[1641058349909,0.0017771,3740.6,3740.5,1.29424212]
[1641058350815,3.04058026,3740.6,3740.5,1.29424212]
[1641058355758,0.0017771,3740.6,3740.5,1.29424212]
[1641058356561,3.04059548,3740.6,3740.5,1.29424212]
[1641058361657,3.73857751,3740.6,3740.5,1.29424212]
[1641058369878,3.73857751,3740.6,3740.5,1.33702512]
[1641058378062,3.04059548,3740.6,3740.5,1.33702512]
[1641058378259,3.04059548,3740.6,3740.5,3.24093271]
[1641058379059,0.0017771,3740.6,3740.5,3.24093271]
[1641058381009,1.39160477,3741.6,3740.6,4.7]
[1641058381210,1.39160477,3741.6,3740.7,2.67030658]
[1641058381410,0.0170527,3741.4,3741.3,0.66819]
[1641058381808,0.0170527,3741.4,3741.3,2.95149658]
[1641058382010,0.0170527,3741.4,3741.3,3.33849658]
[1641058382210,0.0170527,3741.4,3741.3,2.13095354]
[1641058382614,0.0170527,3741.4,3741.3,4.83095354]
[1641058383654,0.0170527,3741.4,3741.3,5.49915354]
[1641058383958,0.0170527,3741.4,3741.3,7.64251177]
[1641058384554,0.0170527,3741.4,3741.3,7.9777242]
[1641058385059,0.0170527,3741.4,3741.3,9.2777242]
[1641058386258,0.0170527,3741.4,3741.3,8.2777242]
[1641058386758,0.0170527,3741.4,3741.3,8.8972433]
[1641058386960,0.0170527,3741.4,3741.3,9.5167624]
[1641058387411,0.0170527,3741.4,3741.3,9.5175624]
[1641058387618,0.0170527,3741.4,3741.3,10.5183624]
[1641058388420,0.0170527,3741.4,3741.3,11.3106624]
[1641058391469,0.0170527,3741.4,3741.3,9.7106624]
[1641058391671,0.0170527,3741.4,3741.3,8.9183624]
[1641058392877,0.0170527,3741.4,3741.3,9.5183624]
[1641058393876,0.0170527,3741.4,3741.3,8.44259886]
[1641058394077,0.0170527,3741.4,3741.3,5.03104063]
[1641058394378,0.0170527,3741.4,3741.3,3.97585063]
[1641058398308,2.5670527,3741.4,3741.3,3.97585063]
[1641058398761,0.0170527,3741.4,3741.3,3.97585063]
[1641058405318,0.0170527,3741.4,3741.3,4.27585063]
[1641058405516,0.0170527,3741.4,3741.3,3.97585063]
[1641058410622,3.05523813,3741.4,3741.3,3.97585063]
[1641058410919,3.05523813,3741.4,3741.3,3.92585063]
[1641058411122,0.0170527,3741.4,3741.3,3.92585063]
[1641058411720,3.03818543,3741.4,3741.3,3.92585063]
[1641058412518,2.49482636,3741.6,3741.3,3.92585063]
[1641058412519,3.03818543,3741.5,3741.3,3.92585063]
[1641058412720,3.03818543,3741.5,3741.3,3.30633153]
[1641058412920,3.05580656,3741.5,3741.4,0.6195191]
[1641058413119,3.05580656,3741.5,3741.4,1.2390382]
[1641058414993,4.39288765,3741.5,3741.4,1.2390382]
[1641058415391,3.05580656,3741.5,3741.4,1.2390382]
[1641058416793,3.05580656,3741.5,3741.4,1.25722084]
[1641058418214,3.05580656,3741.5,3741.4,1.25802084]
[1641058418813,3.05580656,3741.5,3741.4,1.25882084]
[1641058423664,3.05580656,3741.5,3741.4,3.10487052]
[1641058423962,3.05580656,3741.5,3741.4,1.25882084]
[1641058424765,3.05580656,3741.5,3741.4,3.11524158]
[1641058425209,0.01762113,3741.5,3741.4,3.11524158]
[1641058425610,0.01762113,3741.5,3741.4,3.12593241]
[1641058427520,0.01762113,3741.5,3741.4,1.25882084]
[1641058428320,3.05562547,3741.5,3741.4,1.25882084]
[1641058428757,0.01762113,3741.5,3741.4,1.25882084]
[1641058429363,3.05562547,3741.5,3741.4,1.25882084]
[1641058430259,3.05562547,3741.5,3741.4,3.10215514]
[1641058430460,3.05562547,3741.5,3741.4,3.11826638]
[1641058430659,3.05562547,3741.5,3741.4,3.09733565]
[1641058430861,3.05562547,3741.5,3741.4,1.25882084]
[1641058431061,3.05562547,3741.5,3741.4,3.11287715]
[1641058431661,3.05562547,3741.5,3741.4,1.25882084]
[1641058432716,3.05562547,3741.5,3741.4,7.16148566]
[1641058433017,3.05562547,3741.5,3741.4,3.71148566]
[1641058433416,3.05562547,3741.5,3741.4,4.09848566]
[1641058433614,0.01762113,3741.5,3741.4,5.09848566]
[1641058434016,0.01762113,3741.5,3741.4,4.09848566]
[1641058434817,0.01762113,3741.5,3741.4,4.76661566]
[1641058435017,0.01762113,3741.5,3741.4,4.79847279]
[1641058435317,0.01762113,3741.5,3741.4,5.79847279]
[1641058436578,0.01762113,3741.5,3741.4,4.79847279]
[1641058437379,0.01762113,3741.5,3741.4,2.34580797]
[1641058437582,0.01762113,3741.5,3741.4,1.29067797]
[1641058441625,0.01762113,3741.5,3741.4,4.29067797]
[1641058442827,0.01762113,3741.5,3741.4,5.95880797]
[1641058443329,0.69771988,3741.9,3741.4,5.95880797]
[1641058443669,0.0193264,3741.8,3741.7,1.02697227]
[1641058443871,0.0193264,3741.8,3741.7,1.64649137]
[1641058444073,0.0193264,3741.8,3741.7,4.20125202]
[1641058444876,0.0193264,3741.8,3741.7,4.50125202]
[1641058445073,0.0193264,3741.8,3741.7,4.80125202]
[1641058446676,0.0193264,3741.8,3741.7,4.83310672]
[1641058447078,0.0193264,3741.8,3741.7,5.22010672]
[1641058447517,0.0193264,3741.8,3741.7,6.22010672]
[1641058448418,0.0193264,3741.8,3741.7,6.28470672]
[1641058448617,0.0193264,3741.8,3741.7,11.83470672]
[1641058449017,0.01539839,3741.8,3741.7,6.28470672]
[1641058449228,0.01539839,3741.8,3741.7,6.74283503]
[1641058449418,0.05498325,3743.0,3741.8,6.05]
[1641058449619,0.05498325,3743.0,3742.6,1.3356825]
[1641058449818,0.00625265,3742.9,3742.7,2.52219436]
[1641058450023,0.00625265,3742.9,3742.8,3.37595359]
[1641058450219,0.05498325,3743.0,3742.8,3.99547269]
[1641058450520,0.05498325,3743.0,3742.9,3.37724067]
[1641058450924,0.06180433,3743.0,3742.9,3.37724067]
[1641058451175,0.00682108,3743.0,3742.9,3.37724067]
[1641058451575,0.00682108,3743.0,3742.9,7.32724067]
[1641058451875,0.00682108,3743.0,3742.9,9.04980067]
[1641058452273,0.00682108,3743.0,3742.9,9.34980067]
[1641058452480,0.00682108,3743.0,3742.9,9.38164568]
[1641058452684,0.00682108,3743.0,3742.9,5.43164568]
[1641058453580,0.00682108,3743.0,3742.9,5.43244568]
[1641058453782,2.108e-05,3743.0,3742.9,6.43324568]
[1641058454183,2.108e-05,3743.0,3742.9,22.12324568]
[1641058455232,2.108e-05,3743.0,3742.9,20.76687818]
[1641058455427,0.05498069,3744.2,3743.0,22.04]
[1641058455629,0.05498069,3744.2,3743.8,0.66762]
[1641058455931,0.05498069,3744.2,3743.8,1.05462]
[1641058455932,0.00625266,3744.1,3743.8,1.05462]
[1641058456127,0.00625266,3744.1,3743.9,2.14308584]
[1641058456326,0.05498069,3744.2,3743.9,2.14308584]
[1641058456327,0.00568423,3744.0,3743.9,2.14308584]
[1641058456528,6.01066492,3744.9,3744.2,1.22923777]
[1641058456729,6.01066492,3744.9,3744.3,1.87899263]
[1641058456930,0.00454739,3744.8,3744.3,1.87899263]
[1641058457328,0.00397897,3744.7,3744.3,1.87899263]
[1641058457732,0.00341054,3744.6,3744.3,1.87899263]
[1641058458129,0.00284212,3744.5,3744.3,1.87899263]
[1641058458530,0.0022737,3744.4,3744.3,2.54659263]
[1641058458768,0.0022737,3744.4,3744.3,1.91082409]
[1641058459568,0.0022737,3744.4,3744.3,0.03183146]
[1641058459973,0.0318,3744.3,3743.4,0.0621]
[1641058460180,1.36752,3744.3,3743.3,0.05497745]
[1641058460380,0.00113685,3744.2,3743.5,0.00284212]
[1641058460575,0.66793,3744.0,3743.5,0.00284212]
[1641058460777,0.00113685,3744.2,3743.9,1.2390382]
[1641058460976,0.66911685,3744.2,3743.9,1.2390382]
[1641058461277,0.6974326,3744.1,3743.9,1.01307534]
[1641058461477,3.3692526,3744.1,3743.9,1.01307534]
[1641058462520,0.66797,3744.0,3743.9,1.01307534]
[1641058463022,2.7012398,3744.1,3743.9,1.01307534]
[1641058463023,0.6974326,3744.1,3744.0,0.02319037]
[1641058464219,0.6974326,3744.1,3744.0,0.05502569]
[1641058466021,0.6974326,3744.1,3744.0,1.06810103]
[1641058466671,0.6474326,3744.1,3744.0,1.06810103]
[1641058467372,0.64834275,3744.1,3744.0,1.06810103]
[1641058468373,0.64834275,3744.1,3744.0,1.06890103]
[1641058468973,0.64834275,3744.1,3744.0,1.06970103]
[1641058469372,3.29834275,3744.1,3744.0,1.06970103]
[1641058469921,0.64834275,3744.1,3744.0,1.06970103]
[1641058470120,0.62103775,3744.1,3744.0,1.06970103]
[1641058470922,1.75490434,3744.1,3744.0,1.06970103]
[1641058472424,7.80490434,3744.1,3744.0,1.06970103]
[1641058472626,10.2565433,3744.1,3744.0,1.06970103]
[1641058472826,7.80490434,3744.1,3744.0,1.06970103]
[1641058473428,8.80490434,3744.1,3744.0,1.06970103]
[1641058473671,0.66812,3743.2,3742.9,0.05497837]
[1641058473978,0.1064,3743.1,3743.0,0.00284211]
[1641058474171,6.1564,3743.1,3743.0,0.00284211]
[1641058474370,6.4548,3743.1,3743.0,0.00284211]
[1641058474570,8.12778,3743.1,3743.0,0.00284211]
[1641058474872,7.98329286,3743.1,3743.0,0.00284211]
[1641058475071,8.54190056,3743.1,3743.0,0.00284211]
[1641058475470,10.24590056,3743.1,3743.0,0.00284211]
[1641058475669,0.66821,3742.6,3742.0,0.00852635]
[1641058475878,0.66821,3742.5,3742.0,0.00852635]
[1641058476277,1.73909238,3742.5,3742.0,0.00852635]
[1641058477276,0.66821,3742.3,3742.0,0.00852635]
[1641058477519,1.33642,3742.3,3742.0,0.00852635]
[1641058478122,0.66821,3742.3,3742.0,0.00852635]
[1641058478324,0.66821,3742.3,3741.7,0.01023162]
[1641058478325,2.0046309,3742.3,3741.7,0.01023162]
[1641058478524,0.66821,3742.1,3741.7,0.01023162]
[1641058481270,0.66821,3742.1,3741.7,2.71023162]
[1641058481473,0.66821,3742.1,3741.7,2.74208529]
[1641058481668,0.66821,3742.1,3741.8,0.00966319]
[1641058482572,1.33641,3742.4,3741.8,0.00966319]
[1641058483577,2.0045868,3742.4,3741.8,0.00966319]
[1641058484374,0.66818,3742.1,3741.8,0.00966319]
[1641058485030,2.33639,3743.0,3741.8,0.00966319]
[1641058485031,0.1,3743.2,3742.0,0.01241974]
[1641058485231,1.03502359,3743.5,3742.1,0.387]
[1641058485430,1.03502359,3743.5,3742.4,0.6678965]
[1641058485634,1.03502359,3743.5,3742.5,2.25501036]
[1641058485831,1.03502359,3743.5,3742.5,2.26069459]
[1641058486136,1.03502359,3743.5,3742.6,0.00511581]
[1641058486330,1.03502359,3743.5,3742.9,0.66784]
[1641058486530,1.03502359,3743.5,3742.6,0.00511581]
[1641058486734,1.03502359,3743.5,3742.6,0.30511581]
[1641058487031,1.03502359,3743.5,3742.8,0.3]
[1641058487237,1.03502359,3743.5,3742.9,1.9713919]
[1641058487432,1.03502359,3743.5,3742.9,1.97480244]
[1641058487632,1.03502359,3743.5,3742.9,0.00341054]
[1641058488032,1.03502359,3743.5,3743.0,1.2454571]
[1641058488232,0.00080308,3743.4,3743.1,1.88142905]
[1641058488433,0.00080308,3743.4,3743.1,0.00227369]
[1641058488674,0.00080308,3743.4,3743.2,0.00170527]
[1641058492525,0.00080308,3743.4,3743.2,2.70170527]
[1641058492925,0.00080308,3743.4,3743.3,0.00113684]
[1641058494128,2.60080308,3743.4,3743.3,0.01280211]
[1641058495130,4.90080308,3743.4,3743.3,0.01280211]
[1641058496180,6.05080308,3743.4,3743.3,0.01280211]
[1641058496779,4.90080308,3743.4,3743.3,0.01280211]
[1641058496980,2.60080308,3743.4,3743.3,0.01280211]
[1641058498987,5.70080308,3743.4,3743.3,0.01280211]
[1641058501045,2.40124498,3743.5,3743.3,0.01280211]
[1641058503867,3.03671615,3743.4,3743.3,0.01280211]
[1641058504273,3.70471615,3743.4,3743.3,0.01280211]
[1641058504468,3.70471615,3743.4,3743.2,2.68104367]
[1641058504469,3.95,3743.3,3743.2,2.68104367]
[1641058504669,6.05,3743.3,3743.2,1.00606571]
[1641058504971,0.66815,3742.9,3742.2,0.4042595]
[1641058505168,1.0,3743.1,3742.2,0.4042595]
[1641058505369,6.15,3743.2,3742.3,0.00568424]
[1641058505567,0.6681473,3742.9,3742.3,0.00568424]
[1641058505769,0.66815,3742.9,3742.3,0.00568424]
[1641058506173,0.66816,3742.6,3742.3,0.00568424]
[1641058506372,0.66816,3742.6,3741.9,0.00795793]
[1641058506373,0.96816,3742.6,3741.9,0.00795793]
[1641058506571,0.6683244,3742.2,3741.6,0.0096632]
[1641058506775,0.1032,3742.5,3741.4,0.01080005]
[1641058506972,3.13751615,3742.5,3741.4,0.01080005]
[1641058507178,1.20628169,3741.7,3741.4,0.01080005]
[1641058507430,1.87459169,3741.7,3741.4,0.01080005]
[1641058507630,1.87459169,3741.7,3741.1,0.01250532]
[1641058508931,1.3367992,3741.6,3740.7,2.26947563]
[1641058509134,1.3367992,3741.6,3741.2,0.01133017]
[1641058509335,1.33674,3741.4,3741.2,0.01133017]
[1641058509532,1.33674,3741.4,3741.3,0.01136847]
[1641058509732,1.33674,3741.4,3741.2,0.02275663]
[1641058509733,5.7367562,3741.3,3741.2,0.02275663]
[1641058509931,1.3367562,3741.3,3741.2,0.02275663]
[1641058513078,1.3367562,3741.3,3741.2,2.72275663]
[1641058515026,1.3367562,3741.3,3741.2,2.71133017]
[1641058516631,4.37506662,3741.3,3741.2,2.71133017]
[1641058517037,5.37506662,3741.3,3741.2,2.71133017]
[1641058517234,4.37506662,3741.3,3741.2,2.71133017]
[1641058519185,8.22506662,3741.3,3741.2,2.39359275]
[1641058519376,10.75151669,3741.3,3741.2,2.39359275]
[1641058519574,8.20391669,3741.3,3741.2,2.39359275]
[1641058519772,5.78706662,3741.3,3741.2,2.39359275]
[1641058519971,5.78626662,3741.3,3741.2,2.39359275]
[1641058520180,5.78546662,3741.3,3741.2,2.39359275]
[1641058520377,8.24141537,3741.3,3741.2,2.39359275]
[1641058520577,8.24221537,3741.3,3741.2,2.39359275]
[1641058520779,2.7495562,3741.3,3741.2,2.39359275]
[1641058520978,2.7479562,3741.3,3741.2,2.39359275]
[1641058521180,2.7463562,3741.3,3741.2,2.39359275]
[1641058521383,2.7439562,3741.3,3741.2,2.39359275]
[1641058521580,2.6367562,3741.3,3741.2,2.39359275]
[1641058521880,2.3367562,3741.3,3741.2,2.39359275]
[1641058522082,2.6367562,3741.3,3741.2,2.39359275]
[1641058522280,2.6367562,3741.3,3740.5,0.042783]
[1641058522281,0.66857,3740.9,3740.5,0.042783]
[1641058522536,1.337082,3740.7,3740.5,0.042783]
[1641058522735,1.337082,3740.7,3740.6,0.00397897]
[1641058522936,0.1064,3741.4,3740.6,0.00397897]
[1641058523136,1.29269428,3741.0,3740.6,0.00397897]
[1641058524037,1.33707,3740.8,3740.6,0.00397897]
[1641058524839,0.66848,3740.9,3740.6,0.00397897]
[1641058525037,1.33701,3740.9,3740.6,0.00397897]